[Event "SS Manhem Chess Week 2019 Goteborg Open"]
[Site "Molnlycke kulturhus, Biblioteksgatan 2, Molnlycke, Sweden"]
[Date "2019.08.16"]
[Round "2.3"]
[White "Pettersson, Anders"]
[Black "Golubka, Petro"]
[Result "0-1"]
[TimeControl "15 minutes + 5 seconds per move from move one (Round 1 - 4) / 90 minutes + 30 seconds per move from move one (Round 5 - 8)"]
[BlackTitle "IM"]
[WhiteFideId "1715143"]
[BlackFideId "14114224"]
[WhiteElo "2104"]
[BlackElo "2479"]

1. d4 {[%clk 00:15:07]} {[%emt 00:00:02]} Nf6 {[%clk 00:14:50]} {[%emt
00:00:20]} 2. c4 {[%clk 00:15:10]} {[%emt 00:00:02]} g6 {[%clk 00:14:53]}
{[%emt 00:00:02]} 3. Nc3 {[%clk 00:15:12]} {[%emt 00:00:03]} d5 {[%clk
00:14:52]} {[%emt 00:00:07]} 4. Bf4 {[%clk 00:15:14]} {[%emt 00:00:03]} Bg7
{[%clk 00:14:51]} {[%emt 00:00:06]} 5. e3 {[%clk 00:15:17]} {[%emt 00:00:01]}
O-O {[%clk 00:14:53]} {[%emt 00:00:03]} 6. cxd5 {[%clk 00:15:19]} {[%emt
00:00:03]} Nxd5 {[%clk 00:14:56]} {[%emt 00:00:03]} 7. Nxd5 {[%clk 00:15:21]}
{[%emt 00:00:02]} Qxd5 {[%clk 00:14:59]} {[%emt 00:00:02]} 8. Bxc7 {[%clk
00:15:24]} {[%emt 00:00:02]} Na6 {[%clk 00:14:51]} {[%emt 00:00:14]} 9. Bxa6
{[%clk 00:15:22]} {[%emt 00:00:07]} bxa6 {[%clk 00:14:55]} {[%emt 00:00:02]} 10.
Qf3 {[%clk 00:15:23]} {[%emt 00:00:03]} Bb7 {[%clk 00:14:40]} {[%emt 00:00:21]}
11. Qxd5 {[%clk 00:14:31]} {[%emt 00:00:57]} Bxd5 {[%clk 00:14:43]} {[%emt
00:00:03]} 12. Nf3 {[%clk 00:14:34]} {[%emt 00:00:01]} Rfc8 {[%clk 00:14:45]}
{[%emt 00:00:03]} 13. Rc1 {[%clk 00:14:00]} {[%emt 00:00:39]} Bxa2 {[%clk
00:14:47]} {[%emt 00:00:04]} 14. O-O {[%clk 00:13:59]} {[%emt 00:00:06]} Bf8
{[%clk 00:14:42]} {[%emt 00:00:10]} 15. Rc3 {[%clk 00:12:58]} {[%emt 00:01:06]}
e6 {[%clk 00:14:24]} {[%emt 00:00:23]} 16. Ra1 {[%clk 00:11:51]} {[%emt
00:01:12]} Bd5 {[%clk 00:14:01]} {[%emt 00:00:28]} 17. Rxa6 {[%clk 00:11:30]}
{[%emt 00:00:26]} Bb7 {[%clk 00:14:04]} {[%emt 00:00:02]} 18. Ra1 {[%clk
00:10:32]} {[%emt 00:01:02]} Bb4 {[%clk 00:13:52]} {[%emt 00:00:18]} 19. Rcc1
{[%clk 00:10:35]} {[%emt 00:00:02]} f6 {[%clk 00:13:48]} {[%emt 00:00:09]} 20.
h3 {[%clk 00:09:34]} {[%emt 00:01:06]} Kf7 {[%clk 00:13:26]} {[%emt 00:00:28]}
21. Rc4 {[%clk 00:07:26]} {[%emt 00:02:13]} a5 {[%clk 00:13:12]} {[%emt
00:00:20]} 22. Rac1 {[%clk 00:06:48]} {[%emt 00:00:42]} Bd5 {[%clk 00:13:00]}
{[%emt 00:00:18]} 23. R4c2 {[%clk 00:06:51]} {[%emt 00:00:01]} Be4 {[%clk
00:09:12]} {[%emt 00:03:53]} 24. Rc4 {[%clk 00:06:46]} {[%emt 00:00:10]} Bd5
{[%clk 00:09:09]} {[%emt 00:00:08]} 25. R4c2 {[%clk 00:06:49]} {[%emt
00:00:02]} Bb3 {[%clk 00:09:04]} {[%emt 00:00:10]} 26. Rc6 {[%clk 00:06:49]}
{[%emt 00:00:05]} Ba4 {[%clk 00:08:58]} {[%emt 00:00:11]} 27. R6c4 {[%clk
00:06:47]} {[%emt 00:00:06]} Bb5 {[%clk 00:08:49]} {[%emt 00:00:14]} 28. R4c2
{[%clk 00:06:50]} {[%emt 00:00:02]} Ra6 {[%clk 00:07:35]} {[%emt 00:01:20]} 29.
Bf4 {[%clk 00:06:25]} {[%emt 00:00:29]} Rxc2 {[%clk 00:07:37]} {[%emt
00:00:03]} 30. Rxc2 {[%clk 00:06:29]} {[%emt 00:00:01]} Rc6 {[%clk 00:07:39]}
{[%emt 00:00:04]} 31. Rxc6 {[%clk 00:05:15]} {[%emt 00:01:19]} Bxc6 {[%clk
00:07:43]} {[%emt 00:00:01]} 32. Nh2 {[%clk 00:05:18]} a4 {[%clk 00:07:30]}
{[%emt 00:00:19]} 33. f3 {[%clk 00:05:17]} {[%emt 00:00:06]} Bc3 {[%clk
00:06:54]} {[%emt 00:00:41]} 34. Bd6 {[%clk 00:02:23]} {[%emt 00:02:59]} Bxb2
{[%clk 00:06:57]} {[%emt 00:00:03]} 35. Kf2 {[%clk 00:01:55]} {[%emt 00:00:31]}
a3 {[%clk 00:06:58]} {[%emt 00:00:04]} 36. Bxa3 {[%clk 00:01:59]} {[%emt
00:00:01]} Bxa3 {[%clk 00:07:02]} {[%emt 00:00:01]} 37. Nf1 {[%clk 00:02:01]}
{[%emt 00:00:02]} Bb4 {[%clk 00:07:03]} {[%emt 00:00:04]} 38. Ng3 {[%clk
00:02:03]} {[%emt 00:00:03]} Bd6 {[%clk 00:06:37]} {[%emt 00:00:32]} 39. Ne2
{[%clk 00:02:04]} {[%emt 00:00:04]} Ke7 {[%clk 00:06:35]} {[%emt 00:00:08]} 40.
e4 {[%clk 00:01:39]} {[%emt 00:00:29]} Bb5 {[%clk 00:06:28]} {[%emt 00:00:12]}
41. Nc3 {[%clk 00:01:35]} {[%emt 00:00:09]} Bc4 {[%clk 00:06:32]} {[%emt
00:00:01]} 42. g3 {[%clk 00:01:23]} {[%emt 00:00:17]} Bb4 {[%clk 00:06:34]}
{[%emt 00:00:03]} 43. Nd1 {[%clk 00:01:12]} {[%emt 00:00:16]} Bb3 {[%clk
00:06:37]} {[%emt 00:00:02]} 44. Ne3 {[%clk 00:01:07]} {[%emt 00:00:09]} Bc3
{[%clk 00:06:39]} {[%emt 00:00:02]} 45. d5 {[%clk 00:01:05]} {[%emt 00:00:08]}
exd5 {[%clk 00:06:41]} {[%emt 00:00:04]} 46. exd5 {[%clk 00:01:08]} {[%emt
00:00:01]} Bd4 {[%clk 00:06:43]} {[%emt 00:00:02]} 0-1

[Event "SS Manhem Chess Week 2019 Goteborg Open"]
[Site "Molnlycke kulturhus, Biblioteksgatan 2, Molnlycke, Sweden"]
[Date "2019.08.16"]
[Round "2.4"]
[White "Wiedenkeller, Michael"]
[Black "Eriksson, Kristian"]
[Result "1-0"]
[TimeControl "15 minutes + 5 seconds per move from move one (Round 1 - 4) / 90 minutes + 30 seconds per move from move one (Round 5 - 8)"]
[WhiteTitle "IM"]
[WhiteFideId "1700146"]
[BlackFideId "1705172"]
[WhiteElo "2456"]
[BlackElo "2113"]

1. d4 {[%clk 00:15:02]} {[%emt 00:00:07]} Nf6 {[%clk 00:15:06]} {[%emt
00:00:04]} 2. c4 {[%clk 00:15:05]} {[%emt 00:00:02]} e6 {[%clk 00:15:07]}
{[%emt 00:00:05]} 3. Nc3 {[%clk 00:15:08]} {[%emt 00:00:02]} Bb4 {[%clk
00:15:07]} {[%emt 00:00:05]} 4. Qc2 {[%clk 00:15:08]} {[%emt 00:00:05]} Nc6
{[%clk 00:14:54]} {[%emt 00:00:18]} 5. Nf3 {[%clk 00:15:09]} {[%emt 00:00:05]}
d6 {[%clk 00:14:35]} {[%emt 00:00:24]} 6. Bd2 {[%clk 00:15:03]} {[%emt
00:00:10]} O-O {[%clk 00:14:26]} {[%emt 00:00:14]} 7. a3 {[%clk 00:15:03]}
{[%emt 00:00:06]} Bxc3 {[%clk 00:14:29]} {[%emt 00:00:02]} 8. Bxc3 {[%clk
00:15:06]} {[%emt 00:00:02]} a5 {[%clk 00:13:43]} {[%emt 00:00:51]} 9. e3
{[%clk 00:13:28]} {[%emt 00:01:43]} a4 {[%clk 00:13:20]} {[%emt 00:00:29]} 10.
Bd3 {[%clk 00:13:30]} {[%emt 00:00:02]} Qe7 {[%clk 00:13:23]} {[%emt 00:00:02]}
11. O-O {[%clk 00:13:15]} {[%emt 00:00:20]} e5 {[%clk 00:12:55]} {[%emt
00:00:33]} 12. d5 {[%clk 00:13:10]} {[%emt 00:00:11]} Nb8 {[%clk 00:12:24]}
{[%emt 00:00:36]} 13. Nd2 {[%clk 00:10:42]} {[%emt 00:02:33]} Nbd7 {[%clk
00:11:14]} {[%emt 00:01:15]} 14. f4 {[%clk 00:09:58]} {[%emt 00:00:49]} Re8
{[%clk 00:08:23]} {[%emt 00:02:56]} 15. Kh1 {[%clk 00:08:57]} {[%emt 00:01:06]}
h6 {[%clk 00:07:27]} {[%emt 00:01:00]} 16. f5 {[%clk 00:07:57]} {[%emt
00:01:06]} Nc5 {[%clk 00:05:43]} {[%emt 00:01:49]} 17. Be2 {[%clk 00:07:43]}
{[%emt 00:00:19]} b5 {[%clk 00:05:12]} {[%emt 00:00:37]} 18. cxb5 {[%clk
00:06:20]} {[%emt 00:01:27]} Nxd5 {[%clk 00:04:51]} {[%emt 00:00:25]} 19. Rf3
{[%clk 00:05:02]} {[%emt 00:01:23]} Qg5 {[%clk 00:04:18]} {[%emt 00:00:38]} 20.
Rg3 {[%clk 00:03:54]} {[%emt 00:01:13]} Nxe3 {[%clk 00:03:20]} {[%emt
00:01:03]} 21. Qc1 {[%clk 00:03:35]} {[%emt 00:00:24]} Qf4 {[%clk 00:03:12]}
{[%emt 00:00:13]} 22. f6 {[%clk 00:03:29]} {[%emt 00:00:12]} g6 {[%clk
00:02:50]} {[%emt 00:00:26]} 23. Nc4 {[%clk 00:03:02]} {[%emt 00:00:32]} Nxc4
{[%clk 00:02:37]} {[%emt 00:00:19]} 24. Bxc4 {[%clk 00:03:06]} Qxc1+ {[%clk
00:02:20]} {[%emt 00:00:22]} 25. Rxc1 {[%clk 00:03:11]} Be6 {[%clk 00:02:15]}
{[%emt 00:00:11]} 26. Bb4 {[%clk 00:02:37]} {[%emt 00:00:38]} Bxc4 {[%clk
00:02:03]} {[%emt 00:00:17]} 27. Rxc4 {[%clk 00:02:41]} {[%emt 00:00:01]} Ne6
{[%clk 00:01:53]} {[%emt 00:00:16]} 28. Bd2 {[%clk 00:02:45]} {[%emt 00:00:01]}
Kh7 {[%clk 00:01:53]} {[%emt 00:00:04]} 29. Rh3 {[%clk 00:01:22]} {[%emt
00:01:28]} g5 {[%clk 00:01:52]} {[%emt 00:00:06]} 30. Rd3 {[%clk 00:01:09]}
{[%emt 00:00:18]} Kg6 {[%clk 00:01:46]} {[%emt 00:00:11]} 31. b6 {[%clk
00:01:07]} {[%emt 00:00:07]} cxb6 {[%clk 00:01:44]} {[%emt 00:00:07]} 32. Rxd6
{[%clk 00:01:12]} Kxf6 {[%clk 00:01:23]} {[%emt 00:00:26]} 33. Rxb6 {[%emt
00:00:53]} Red8 {[%clk 00:01:20]} {[%emt 00:00:05]} 34. Rc2 {[%clk 00:00:31]}
Kf5 {[%clk 00:01:14]} {[%emt 00:00:12]} 35. h3 {[%clk 00:00:29]} {[%emt
00:00:06]} Nd4 {[%clk 00:01:14]} {[%emt 00:00:05]} 36. Rc7 {[%clk 00:00:32]}
{[%emt 00:00:02]} Rf8 {[%clk 00:00:49]} {[%emt 00:00:30]} 37. Rxh6 {[%clk
00:00:32]} {[%emt 00:00:05]} Rac8 {[%clk 00:00:35]} {[%emt 00:00:19]} 38. Ra7
{[%clk 00:00:26]} {[%emt 00:00:11]} Ne2 {[%clk 00:00:30]} {[%emt 00:00:10]} 39.
Rxa4 {[%clk 00:00:18]} {[%emt 00:00:13]} Rfd8 {[%clk 00:00:24]} {[%emt
00:00:10]} 40. g4# {[%clk 00:00:21]} {[%emt 00:00:02]} 1-0

[Event "SS Manhem Chess Week 2019 Goteborg Open"]
[Site "Molnlycke kulturhus, Biblioteksgatan 2, Molnlycke, Sweden"]
[Date "2019.08.16"]
[Round "2.5"]
[White "Torngren, Gustav"]
[Black "Le, Quang Long"]
[Result "0-1"]
[TimeControl "15 minutes + 5 seconds per move from move one (Round 1 - 4) / 90 minutes + 30 seconds per move from move one (Round 5 - 8)"]
[BlackTitle "IM"]
[WhiteFideId "1728970"]
[BlackFideId "12401749"]
[WhiteElo "2061"]
[BlackElo "2411"]

1. d4 {[%clk 00:15:06]} {[%emt 00:00:03]} f5 {[%clk 00:14:58]} {[%emt
00:00:13]} 2. Bg5 {[%clk 00:15:04]} {[%emt 00:00:07]} g6 {[%clk 00:14:44]}
{[%emt 00:00:19]} 3. Nd2 {[%clk 00:15:07]} {[%emt 00:00:02]} Bg7 {[%clk
00:14:48]} {[%emt 00:00:01]} 4. e4 {[%clk 00:15:11]} fxe4 {[%clk 00:13:25]}
{[%emt 00:01:28]} 5. Nxe4 {[%clk 00:15:15]} {[%emt 00:00:01]} Nf6 {[%clk
00:13:18]} {[%emt 00:00:12]} 6. Nxf6+ {[%clk 00:12:42]} {[%emt 00:02:38]} exf6
{[%clk 00:13:21]} {[%emt 00:00:02]} 7. Bh4 {[%clk 00:12:45]} {[%emt 00:00:02]}
O-O {[%clk 00:12:58]} {[%emt 00:00:28]} 8. Bd3 {[%clk 00:12:40]} {[%emt
00:00:10]} Nc6 {[%clk 00:11:54]} {[%emt 00:01:10]} 9. Ne2 {[%clk 00:12:30]}
{[%emt 00:00:15]} d5 {[%clk 00:11:00]} {[%emt 00:00:59]} 10. c3 {[%clk
00:11:51]} {[%emt 00:00:43]} Ne7 {[%clk 00:10:56]} {[%emt 00:00:10]} 11. O-O
{[%clk 00:10:40]} {[%emt 00:01:15]} Nf5 {[%clk 00:09:39]} {[%emt 00:01:23]} 12.
Bg3 {[%clk 00:10:36]} {[%emt 00:00:09]} Nxg3 {[%clk 00:08:58]} {[%emt
00:00:47]} 13. fxg3 {[%clk 00:10:00]} {[%emt 00:00:41]} Be6 {[%clk 00:08:06]}
{[%emt 00:00:57]} 14. Nf4 {[%clk 00:09:14]} {[%emt 00:00:51]} Bf7 {[%clk
00:08:09]} {[%emt 00:00:02]} 15. Bc2 {[%clk 00:08:41]} {[%emt 00:00:38]} Qd6
{[%clk 00:08:03]} {[%emt 00:00:11]} 16. Qd3 {[%clk 00:08:43]} {[%emt 00:00:04]}
c6 {[%clk 00:07:41]} {[%emt 00:00:28]} 17. Rf3 {[%clk 00:08:20]} {[%emt
00:00:27]} Rfe8 {[%clk 00:07:31]} {[%emt 00:00:14]} 18. Raf1 {[%clk 00:08:17]}
{[%emt 00:00:08]} Re4 {[%clk 00:06:59]} {[%emt 00:00:37]} 19. Qd2 {[%clk
00:07:46]} {[%emt 00:00:36]} Re7 {[%clk 00:07:03]} {[%emt 00:00:02]} 20. Nd3
{[%clk 00:07:43]} {[%emt 00:00:07]} Rae8 {[%clk 00:07:00]} {[%emt 00:00:08]} 21.
R3f2 {[%clk 00:06:30]} {[%emt 00:01:18]} b6 {[%clk 00:06:31]} {[%emt 00:00:34]}
22. Ba4 {[%clk 00:06:20]} {[%emt 00:00:15]} Re4 {[%clk 00:05:33]} {[%emt
00:01:02]} 23. Bd1 {[%clk 00:04:38]} {[%emt 00:01:47]} c5 {[%clk 00:05:15]}
{[%emt 00:00:24]} 24. dxc5 {[%clk 00:04:22]} {[%emt 00:00:21]} bxc5 {[%clk
00:05:18]} {[%emt 00:00:02]} 25. Bf3 {[%clk 00:04:18]} {[%emt 00:00:10]} Re3
{[%clk 00:05:08]} {[%emt 00:00:14]} 26. b4 {[%clk 00:03:57]} {[%emt 00:00:26]}
c4 {[%clk 00:03:39]} {[%emt 00:01:35]} 27. Nf4 {[%clk 00:03:56]} {[%emt
00:00:06]} R3e5 {[%clk 00:02:48]} {[%emt 00:00:55]} 28. Ne2 {[%clk 00:04:00]}
Re3 {[%clk 00:02:32]} {[%emt 00:00:22]} 29. Nf4 {[%clk 00:04:01]} {[%emt
00:00:04]} Bh6 {[%clk 00:01:30]} {[%emt 00:01:07]} 30. Bxd5 {[%clk 00:01:49]}
{[%emt 00:02:17]} Bxf4 {[%clk 00:01:13]} {[%emt 00:00:22]} 31. Bxf7+ {[%clk
00:01:44]} {[%emt 00:00:10]} Kxf7 {[%clk 00:01:17]} {[%emt 00:00:01]} 32. gxf4
{[%clk 00:01:25]} {[%emt 00:00:24]} Qxd2 {[%clk 00:00:51]} {[%emt 00:00:31]} 33.
Rxd2 {[%clk 00:01:30]} Rxc3 {[%clk 00:00:53]} {[%emt 00:00:02]} 34. Rd7+ {[%clk
00:00:53]} {[%emt 00:00:41]} Re7 {[%clk 00:00:57]} {[%emt 00:00:02]} 35. Rfd1
{[%clk 00:00:51]} {[%emt 00:00:07]} Ra3 {[%clk 00:00:55]} {[%emt 00:00:07]} 36.
Rxe7+ {[%clk 00:00:36]} {[%emt 00:00:20]} Kxe7 {[%clk 00:00:59]} {[%emt
00:00:01]} 37. Rc1 {[%clk 00:00:36]} {[%emt 00:00:04]} c3 {[%clk 00:00:51]}
{[%emt 00:00:12]} 38. Rc2 {[%clk 00:00:14]} {[%emt 00:00:28]} Kd6 {[%clk
00:00:54]} {[%emt 00:00:03]} 39. Kf2 {[%clk 00:00:16]} {[%emt 00:00:03]} Kd5
{[%clk 00:00:57]} {[%emt 00:00:01]} 40. Ke3 {[%clk 00:00:13]} {[%emt 00:00:08]}
Kc4 {[%clk 00:01:01]} {[%emt 00:00:01]} 41. g3 {[%clk 00:00:11]} {[%emt
00:00:07]} f5 {[%clk 00:00:56]} {[%emt 00:00:10]} 42. h3 {[%clk 00:00:08]}
{[%emt 00:00:08]} Ra6 {[%clk 00:00:52]} {[%emt 00:00:08]} 43. b5 {[%clk
00:00:09]} {[%emt 00:00:05]} Re6+ {[%clk 00:00:55]} {[%emt 00:00:01]} 44. Kf2
{[%clk 00:00:06]} {[%emt 00:00:08]} Kd3 {[%clk 00:00:59]} 0-1

[Event "SS Manhem Chess Week 2019 Goteborg Open"]
[Site "Molnlycke kulturhus, Biblioteksgatan 2, Molnlycke, Sweden"]
[Date "2019.08.16"]
[Round "2.6"]
[White "Seo, Jung Min"]
[Black "Lacko, Pavel"]
[Result "1-0"]
[TimeControl "15 minutes + 5 seconds per move from move one (Round 1 - 4) / 90 minutes + 30 seconds per move from move one (Round 5 - 8)"]
[WhiteTitle "FM"]
[WhiteFideId "1734687"]
[BlackFideId "1701274"]
[WhiteElo "2409"]
[BlackElo "2081"]

1. d4 {[%clk 00:15:08]} Nf6 {[%clk 00:15:05]} {[%emt 00:00:06]} 2. c4 {[%clk
00:15:11]} e6 {[%clk 00:15:06]} {[%emt 00:00:05]} 3. Nc3 {[%clk 00:15:14]}
{[%emt 00:00:02]} Bb4 {[%clk 00:15:05]} {[%emt 00:00:06]} 4. e3 {[%clk
00:15:16]} {[%emt 00:00:02]} c5 {[%clk 00:15:04]} {[%emt 00:00:07]} 5. Bd3
{[%clk 00:15:16]} {[%emt 00:00:04]} Nc6 {[%clk 00:15:02]} {[%emt 00:00:08]} 6.
Nf3 {[%clk 00:15:20]} {[%emt 00:00:01]} Bxc3+ {[%clk 00:14:56]} {[%emt
00:00:11]} 7. bxc3 {[%clk 00:15:24]} d6 {[%clk 00:14:59]} {[%emt 00:00:01]} 8.
e4 {[%clk 00:15:25]} {[%emt 00:00:03]} e5 {[%clk 00:14:59]} {[%emt 00:00:06]} 9.
d5 {[%clk 00:15:29]} {[%emt 00:00:01]} Ne7 {[%clk 00:14:53]} {[%emt 00:00:11]}
10. Bg5 {[%clk 00:15:03]} {[%emt 00:00:31]} Ng6 {[%clk 00:14:38]} {[%emt
00:00:20]} 11. Nh4 {[%clk 00:15:06]} {[%emt 00:00:02]} h6 {[%clk 00:14:15]}
{[%emt 00:00:28]} 12. Nxg6 {[%clk 00:15:09]} fxg6 {[%clk 00:14:17]} {[%emt
00:00:04]} 13. Bd2 {[%clk 00:15:09]} {[%emt 00:00:05]} O-O {[%clk 00:13:55]}
{[%emt 00:00:28]} 14. O-O {[%clk 00:15:12]} {[%emt 00:00:02]} Nh5 {[%clk
00:12:46]} {[%emt 00:01:13]} 15. g3 {[%clk 00:15:03]} {[%emt 00:00:15]} Bh3
{[%clk 00:12:30]} {[%emt 00:00:22]} 16. Re1 {[%clk 00:15:07]} Qd7 {[%clk
00:12:28]} {[%emt 00:00:08]} 17. Be2 {[%clk 00:14:40]} {[%emt 00:00:31]} Nf6
{[%clk 00:11:41]} {[%emt 00:00:52]} 18. f3 {[%clk 00:14:44]} Qf7 {[%clk
00:11:24]} {[%emt 00:00:22]} 19. Bf1 {[%clk 00:14:13]} {[%emt 00:00:36]} Bd7
{[%clk 00:10:50]} {[%emt 00:00:40]} 20. Bg2 {[%clk 00:14:13]} {[%emt 00:00:04]}
b5 {[%clk 00:10:44]} {[%emt 00:00:11]} 21. Qe2 {[%clk 00:13:53]} {[%emt
00:00:25]} Rab8 {[%clk 00:10:38]} {[%emt 00:00:11]} 22. f4 {[%clk 00:13:54]}
{[%emt 00:00:03]} Qe7 {[%clk 00:08:06]} {[%emt 00:02:37]} 23. fxe5 {[%clk
00:13:55]} {[%emt 00:00:04]} Qxe5 {[%clk 00:08:02]} {[%emt 00:00:10]} 24. Bf4
{[%clk 00:13:59]} Qe7 {[%clk 00:08:05]} {[%emt 00:00:01]} 25. e5 {[%clk
00:13:45]} {[%emt 00:00:19]} dxe5 {[%clk 00:08:07]} {[%emt 00:00:05]} 26. Qxe5
{[%clk 00:13:32]} {[%emt 00:00:17]} Qxe5 {[%clk 00:07:51]} {[%emt 00:00:21]} 27.
Bxe5 {[%clk 00:13:35]} {[%emt 00:00:02]} Rbe8 {[%clk 00:07:33]} {[%emt
00:00:23]} 28. Bd6 {[%clk 00:13:11]} {[%emt 00:00:28]} Rxe1+ {[%clk 00:07:26]}
{[%emt 00:00:13]} 29. Rxe1 {[%clk 00:13:15]} {[%emt 00:00:01]} Rc8 {[%clk
00:07:16]} {[%emt 00:00:15]} 30. cxb5 {[%emt 00:00:17]} Bxb5 {[%clk 00:07:13]}
{[%emt 00:00:06]} 31. Be7 {[%clk 00:13:08]} {[%emt 00:00:02]} Kf7 {[%clk
00:07:01]} {[%emt 00:00:17]} 32. d6 {[%clk 00:13:06]} {[%emt 00:00:07]} Bd7
{[%clk 00:04:34]} {[%emt 00:02:32]} 33. Rb1 {[%clk 00:13:01]} {[%emt 00:00:10]}
Ke8 {[%clk 00:03:45]} {[%emt 00:00:54]} 34. Rb7 {[%clk 00:12:55]} {[%emt
00:00:10]} a5 {[%clk 00:03:42]} {[%emt 00:00:10]} 35. Bf3 {[%clk 00:11:49]}
{[%emt 00:01:10]} a4 {[%clk 00:03:33]} {[%emt 00:00:15]} 36. Kf2 {[%clk
00:11:41]} {[%emt 00:00:12]} Bc6 {[%clk 00:01:49]} {[%emt 00:01:49]} 37. Rc7
{[%clk 00:11:31]} {[%emt 00:00:15]} Bd7 {[%clk 00:01:41]} {[%emt 00:00:13]} 38.
Bxf6 {[%clk 00:11:12]} {[%emt 00:00:23]} gxf6 {[%clk 00:01:35]} {[%emt
00:00:11]} 39. Bc6 {[%clk 00:11:16]} {[%emt 00:00:01]} Rxc7 {[%clk 00:01:24]}
{[%emt 00:00:17]} 40. dxc7 {[%clk 00:11:20]} {[%emt 00:00:02]} Ke7 {[%clk
00:01:21]} {[%emt 00:00:08]} 41. Bb7 {[%emt 00:00:06]} 1-0

[Event "SS Manhem Chess Week 2019 Goteborg Open"]
[Site "Molnlycke kulturhus, Biblioteksgatan 2, Molnlycke, Sweden"]
[Date "2019.08.16"]
[Round "2.7"]
[White "Sorensen, Bent"]
[Black "Vypkhaniuk, Ihor"]
[Result "0-1"]
[TimeControl "15 minutes + 5 seconds per move from move one (Round 1 - 4) / 90 minutes + 30 seconds per move from move one (Round 5 - 8)"]
[WhiteTitle "IM"]
[BlackTitle "FM"]
[WhiteFideId "1400410"]
[BlackFideId "14112256"]
[WhiteElo "2042"]
[BlackElo "2405"]

1. Nf3 {[%clk 00:15:06]} {[%emt 00:00:02]} c5 {[%clk 00:15:04]} {[%emt
00:00:06]} 2. c4 {[%clk 00:15:02]} {[%emt 00:00:09]} g6 {[%clk 00:15:03]}
{[%emt 00:00:06]} 3. e3 {[%clk 00:14:46]} {[%emt 00:00:21]} Nf6 {[%clk
00:15:04]} {[%emt 00:00:04]} 4. d4 {[%clk 00:14:38]} {[%emt 00:00:12]} cxd4
{[%clk 00:15:06]} {[%emt 00:00:03]} 5. exd4 {[%clk 00:14:37]} {[%emt 00:00:07]}
Bg7 {[%clk 00:15:09]} {[%emt 00:00:02]} 6. Be2 {[%clk 00:14:28]} {[%emt
00:00:13]} O-O {[%clk 00:15:11]} {[%emt 00:00:03]} 7. O-O {[%clk 00:14:31]}
{[%emt 00:00:02]} d5 {[%clk 00:15:14]} {[%emt 00:00:02]} 8. cxd5 {[%clk
00:14:22]} {[%emt 00:00:14]} Nxd5 {[%clk 00:15:15]} {[%emt 00:00:04]} 9. Nc3
{[%clk 00:14:25]} {[%emt 00:00:02]} Nc6 {[%clk 00:15:05]} {[%emt 00:00:15]} 10.
Bg5 {[%clk 00:14:00]} {[%emt 00:00:29]} h6 {[%clk 00:14:39]} {[%emt 00:00:31]}
11. Bh4 {[%clk 00:14:04]} {[%emt 00:00:01]} Be6 {[%clk 00:14:18]} {[%emt
00:00:26]} 12. Qd2 {[%clk 00:13:46]} {[%emt 00:00:24]} Rc8 {[%clk 00:14:01]}
{[%emt 00:00:22]} 13. Rfd1 {[%clk 00:13:36]} {[%emt 00:00:14]} Na5 {[%clk
00:13:18]} {[%emt 00:00:48]} 14. Nxd5 {[%clk 00:11:44]} {[%emt 00:01:57]} Bxd5
{[%clk 00:13:21]} {[%emt 00:00:02]} 15. b3 {[%clk 00:11:45]} {[%emt 00:00:05]}
Nc6 {[%clk 00:13:10]} {[%emt 00:00:16]} 16. Rac1 {[%clk 00:10:36]} {[%emt
00:01:14]} Bxf3 {[%clk 00:12:08]} {[%emt 00:01:08]} 17. Bxf3 {[%clk 00:10:38]}
{[%emt 00:00:02]} Nxd4 {[%clk 00:12:05]} {[%emt 00:00:07]} 18. Bxb7 {[%clk
00:10:31]} {[%emt 00:00:12]} Rxc1 {[%clk 00:11:51]} {[%emt 00:00:19]} 19. Qxc1
{[%clk 00:10:06]} {[%emt 00:00:31]} Ne2+ {[%emt 00:00:02]} 20. Kf1 Nxc1 {[%clk
00:11:55]} {[%emt 00:00:03]} 21. Rxd8 {[%clk 00:10:15]} Rxd8 {[%clk 00:11:57]}
{[%emt 00:00:04]} 22. Bf3 {[%clk 00:09:54]} {[%emt 00:00:26]} g5 {[%clk
00:11:52]} {[%emt 00:00:10]} 23. Bg3 {[%clk 00:09:58]} e5 {[%clk 00:11:51]}
{[%emt 00:00:07]} 24. h4 {[%clk 00:09:48]} {[%emt 00:00:15]} Nxa2 {[%clk
00:11:53]} {[%emt 00:00:03]} 25. hxg5 {[%clk 00:09:52]} {[%emt 00:00:02]} hxg5
{[%clk 00:11:57]} {[%emt 00:00:01]} 26. Be4 {[%clk 00:09:38]} {[%emt 00:00:19]}
Rd1+ {[%clk 00:11:53]} {[%emt 00:00:09]} 27. Ke2 {[%clk 00:09:42]} Nc3+ {[%clk
00:11:56]} {[%emt 00:00:02]} 28. Kf3 {[%clk 00:09:43]} {[%emt 00:00:04]} g4+
{[%clk 00:11:57]} {[%emt 00:00:04]} 0-1